[Event "*** SCC Grand Prix: Titled Tuesday Blitz"]
[Site "Chess.com"]
[Date "2020.08.25"]
[Round "10"]
[White "cassoulet"]
[Black "VincentKeymer"]
[Result "1/2-1/2"]
[WhiteElo "2736"]
[BlackElo "2825"]
[TimeControl "180+1"]
[EndTime "12:01:14 PDT"]
[Termination "Game drawn by repetition"]

1. e4 {[%clk 0:03:00.9]} 1... c5 {[%clk 0:02:59.7]} 2. Nf3 {[%clk 0:03:00.7]}
2... d6 {[%clk 0:03:00.2]} 3. d4 {[%clk 0:03:00.7]} 3... cxd4 {[%clk 0:03:01.1]}
4. Nxd4 {[%clk 0:03:01.3]} 4... Nf6 {[%clk 0:03:01.6]} 5. Nc3 {[%clk 0:03:01.9]}
5... a6 {[%clk 0:03:02]} 6. g3 {[%clk 0:03:02.1]} 6... e5 {[%clk 0:03:00.5]} 7.
Nde2 {[%clk 0:03:02.6]} 7... Be7 {[%clk 0:02:55.7]} 8. Bg2 {[%clk 0:03:02.8]}
8... b5 {[%clk 0:02:52.9]} 9. O-O {[%clk 0:03:02.9]} 9... Bb7 {[%clk 0:02:48.5]}
10. h3 {[%clk 0:03:02.3]} 10... Nbd7 {[%clk 0:02:42.7]} 11. g4 {[%clk
0:03:01.7]} 11... Nb6 {[%clk 0:02:42.8]} 12. Ng3 {[%clk 0:03:00.3]} 12... g6
{[%clk 0:02:40.9]} 13. g5 {[%clk 0:02:55.3]} 13... Nfd7 {[%clk 0:02:38.7]} 14.
h4 {[%clk 0:02:55.5]} 14... h6 {[%clk 0:02:33.8]} 15. gxh6 {[%clk 0:02:41.9]}
15... Bxh4 {[%clk 0:02:28.9]} 16. Qxd6 {[%clk 0:02:41.3]} 16... Bg5 {[%clk
0:02:26.1]} 17. Nd5 {[%clk 0:02:17.7]} 17... Bxd5 {[%clk 0:02:15.6]} 18. exd5
{[%clk 0:02:18.6]} 18... Be7 {[%clk 0:02:08.9]} 19. Qc6 {[%clk 0:02:12.9]} 19...
Rc8 {[%clk 0:02:09.1]} 20. Qb7 {[%clk 0:02:10.8]} 20... Nc5 {[%clk 0:02:07.1]}
21. Qa7 {[%clk 0:02:01.5]} 21... Ra8 {[%clk 0:01:57.8]} 22. Qxa8 {[%clk
0:01:59]} 22... Qxa8 {[%clk 0:01:58.7]} 23. d6 {[%clk 0:01:57.5]} 23... Qc8
{[%clk 0:01:48.1]} 24. dxe7 {[%clk 0:01:57.1]} 24... Kxe7 {[%clk 0:01:49]} 25.
Bg5+ {[%clk 0:01:56.5]} 25... f6 {[%clk 0:01:48.6]} 26. Bd2 {[%clk 0:01:43.3]}
26... Nc4 {[%clk 0:01:46.4]} 27. Bb4 {[%clk 0:01:41.9]} 27... a5 {[%clk
0:01:43.9]} 28. Bxc5+ {[%clk 0:01:41.1]} 28... Qxc5 {[%clk 0:01:44.8]} 29. Ne4
{[%clk 0:01:41.5]} 29... Qc7 {[%clk 0:01:40.9]} 30. Nc3 {[%clk 0:01:38]} 30...
Nb6 {[%clk 0:01:35.2]} 31. Nxb5 {[%clk 0:01:34.4]} 31... Qc4 {[%clk 0:01:32.4]}
32. a4 {[%clk 0:01:27.2]} 32... Rxh6 {[%clk 0:01:29.3]} 33. Rfd1 {[%clk
0:01:22.3]} 33... Rh5 {[%clk 0:01:18.3]} 34. b3 {[%clk 0:01:14.5]} 34... Qg4
{[%clk 0:01:11.2]} 35. Rd3 {[%clk 0:01:07.5]} 35... e4 {[%clk 0:00:39.8]} 36.
Rg3 {[%clk 0:01:04.7]} 36... Qf4 {[%clk 0:00:39.7]} 37. Re1 {[%clk 0:01:00.5]}
37... f5 {[%clk 0:00:38.3]} 38. Rxg6 {[%clk 0:00:59]} 38... Nd5 {[%clk
0:00:38.4]} 39. Nd4 {[%clk 0:00:45.1]} 39... Qh2+ {[%clk 0:00:32]} 40. Kf1
{[%clk 0:00:44.5]} 40... Nf4 {[%clk 0:00:32.4]} 41. Rg7+ {[%clk 0:00:40.2]}
41... Kf8 {[%clk 0:00:30.5]} 42. Rg3 {[%clk 0:00:39.4]} 42... Rh3 {[%clk
0:00:23.1]} 43. Rg5 {[%clk 0:00:31.3]} 43... Rh5 {[%clk 0:00:21.8]} 44. Rg3
{[%clk 0:00:30.1]} 44... Qh4 {[%clk 0:00:17.4]} 45. Ne2 {[%clk 0:00:26.7]} 45...
Nxg2 {[%clk 0:00:15.3]} 46. Rxg2 {[%clk 0:00:26.5]} 46... f4 {[%clk 0:00:15.8]}
47. Ng1 {[%clk 0:00:25.1]} 47... f3 {[%clk 0:00:15]} 48. Rg3 {[%clk 0:00:25.3]}
48... Qf4 {[%clk 0:00:14.4]} 49. Re3 {[%clk 0:00:25]} 49... Rh1 {[%clk
0:00:13.8]} 50. Ke1 {[%clk 0:00:23.6]} 50... Kf7 {[%clk 0:00:12.4]} 51. Kd2
{[%clk 0:00:22.8]} 51... Kf6 {[%clk 0:00:11.1]} 52. Nxf3 {[%clk 0:00:22.4]}
52... Qd6+ {[%clk 0:00:10.1]} 53. Kc3 {[%clk 0:00:20.5]} 53... Qb4+ {[%clk
0:00:08.4]} 54. Kb2 {[%clk 0:00:20.2]} 54... exf3 {[%clk 0:00:08.7]} 55. Rgxf3+
{[%clk 0:00:20]} 55... Kg5 {[%clk 0:00:07.3]} 56. Rg3+ {[%clk 0:00:20.3]} 56...
Kh6 {[%clk 0:00:06.8]} 57. Re6+ {[%clk 0:00:20.1]} 57... Kh7 {[%clk 0:00:07.1]}
58. c3 {[%clk 0:00:11.1]} 58... Qf4 {[%clk 0:00:05.2]} 59. Re7+ {[%clk
0:00:11.1]} 59... Kh6 {[%clk 0:00:05.6]} 60. Re6+ {[%clk 0:00:11.4]} 60... Kh5
{[%clk 0:00:05.3]} 61. Rge3 {[%clk 0:00:10.8]} 61... Qxf2+ {[%clk 0:00:05.2]}
62. Re2 {[%clk 0:00:11.2]} 62... Qf1 {[%clk 0:00:04.9]} 63. R6e5+ {[%clk
0:00:12.1]} 63... Kg4 {[%clk 0:00:03.7]} 64. R5e4+ {[%clk 0:00:12.6]} 64... Kg3
{[%clk 0:00:03.8]} 65. R4e3+ {[%clk 0:00:13]} 65... Kf4 {[%clk 0:00:04.4]} 66.
Re4+ {[%clk 0:00:13.5]} 66... Kg5 {[%clk 0:00:05]} 67. Re5+ {[%clk 0:00:14]}
67... Kg6 {[%clk 0:00:05.8]} 68. Re6+ {[%clk 0:00:14.4]} 68... Kf7 {[%clk
0:00:06.1]} 69. Re7+ {[%clk 0:00:14.9]} 69... Kf8 {[%clk 0:00:06.7]} 70. Re8+
{[%clk 0:00:15.4]} 70... Kg7 {[%clk 0:00:07.6]} 71. R8e7+ {[%clk 0:00:15.8]}
71... Kg6 {[%clk 0:00:07.9]} 72. R7e6+ {[%clk 0:00:16.2]} 72... Kg5 {[%clk
0:00:07.3]} 73. R6e5+ {[%clk 0:00:16.5]} 73... Kg4 {[%clk 0:00:07.8]} 74. R5e4+
{[%clk 0:00:17]} 74... Kg3 {[%clk 0:00:08.2]} 75. R4e3+ {[%clk 0:00:17.5]} 75...
Kh4 {[%clk 0:00:07.5]} 76. Re4+ {[%clk 0:00:17.9]} 76... Kh5 {[%clk 0:00:07.7]}
77. Re5+ {[%clk 0:00:18.3]} 77... Kh6 {[%clk 0:00:07.9]} 78. Re6+ {[%clk
0:00:18.8]} 78... Kg5 {[%clk 0:00:08.5]} 79. R6e5+ {[%clk 0:00:18.9]} 1/2-1/2

[Event "*** SCC Grand Prix: Titled Tuesday Blitz"]
[Site "Chess.com"]
[Date "2020.08.25"]
[Round "10"]
[White "VMikhalevski"]
[Black "Anton_Demchenko"]
[Result "0-1"]
[WhiteElo "2731"]
[BlackElo "2859"]
[TimeControl "180+1"]
[EndTime "12:01:18 PDT"]
[Termination "Anton_Demchenko won on time"]

1. d4 {[%clk 0:03:00.9]} 1... Nf6 {[%clk 0:02:59.5]} 2. c4 {[%clk 0:03:00.9]}
2... g6 {[%clk 0:03:00]} 3. Nc3 {[%clk 0:03:01]} 3... Bg7 {[%clk 0:03:00.6]} 4.
e4 {[%clk 0:03:01.1]} 4... O-O {[%clk 0:03:01.3]} 5. Be2 {[%clk 0:03:01.3]} 5...
d6 {[%clk 0:03:01.7]} 6. Nf3 {[%clk 0:03:01.4]} 6... Nbd7 {[%clk 0:03:01.3]} 7.
O-O {[%clk 0:03:00.6]} 7... e5 {[%clk 0:03:01.9]} 8. Re1 {[%clk 0:03:00.6]} 8...
exd4 {[%clk 0:02:58.1]} 9. Nxd4 {[%clk 0:03:00]} 9... Re8 {[%clk 0:02:59]} 10.
Bf1 {[%clk 0:02:58.9]} 10... c6 {[%clk 0:02:57.9]} 11. f3 {[%clk 0:02:50.4]}
11... a5 {[%clk 0:02:51.3]} 12. Bg5 {[%clk 0:02:44.7]} 12... Nc5 {[%clk
0:02:47.8]} 13. Qd2 {[%clk 0:02:43]} 13... a4 {[%clk 0:02:40.7]} 14. Rab1 {[%clk
0:02:38.1]} 14... Qa5 {[%clk 0:02:39.1]} 15. Red1 {[%clk 0:02:37.4]} 15... Nfxe4
{[%clk 0:01:39.2]} 16. Nxe4 {[%clk 0:02:11.3]} 16... Nxe4 {[%clk 0:01:38.3]} 17.
Qxa5 {[%clk 0:02:00.5]} 17... Rxa5 {[%clk 0:01:38.2]} 18. Bf4 {[%clk 0:01:58.8]}
18... Be5 {[%clk 0:01:08.8]} 19. Bxe5 {[%clk 0:01:36.2]} 19... dxe5 {[%clk
0:01:09.7]} 20. Nxc6 {[%clk 0:01:36.4]} 20... bxc6 {[%clk 0:01:10.5]} 21. fxe4
{[%clk 0:01:36.7]} 21... Kf8 {[%clk 0:01:06.5]} 22. Rd6 {[%clk 0:01:35.2]} 22...
c5 {[%clk 0:01:00.4]} 23. Rbd1 {[%clk 0:01:19]} 23... Be6 {[%clk 0:01:00.6]} 24.
Rb6 {[%clk 0:01:18.8]} 24... Raa8 {[%clk 0:00:52.6]} 25. Rdd6 {[%clk 0:01:13]}
25... Ke7 {[%clk 0:00:50.6]} 26. Rdc6 {[%clk 0:01:11.3]} 26... Rec8 {[%clk
0:00:47.4]} 27. Rb7+ {[%clk 0:01:10.5]} 27... Kd8 {[%clk 0:00:36.9]} 28. Rcb6
{[%clk 0:01:06.1]} 28... Rc7 {[%clk 0:00:26.4]} 29. Rd6+ {[%clk 0:01:04.8]}
29... Kc8 {[%clk 0:00:25.2]} 30. Rbb6 {[%clk 0:01:02.2]} 30... Rb8 {[%clk
0:00:24.6]} 31. b3 {[%clk 0:00:56.4]} 31... axb3 {[%clk 0:00:23.1]} 32. axb3
{[%clk 0:00:56.4]} 32... Rxb6 {[%clk 0:00:23.7]} 33. Rxb6 {[%clk 0:00:56]} 33...
Rb7 {[%clk 0:00:23.7]} 34. Rc6+ {[%clk 0:00:50.4]} 34... Rc7 {[%clk 0:00:24.1]}
35. Rb6 {[%clk 0:00:45.9]} 35... Bd7 {[%clk 0:00:24.3]} 36. Rd6 {[%clk 0:00:42]}
36... Rc6 {[%clk 0:00:20.2]} 37. Rd3 {[%clk 0:00:38.2]} 37... f6 {[%clk
0:00:19.3]} 38. Kf2 {[%clk 0:00:37.2]} 38... Kc7 {[%clk 0:00:19.8]} 39. Ke3
{[%clk 0:00:37.2]} 39... Be6 {[%clk 0:00:19.8]} 40. Be2 {[%clk 0:00:34.8]} 40...
Ra6 {[%clk 0:00:19.9]} 41. h4 {[%clk 0:00:30.7]} 41... h6 {[%clk 0:00:17.7]} 42.
g3 {[%clk 0:00:29.2]} 42... g5 {[%clk 0:00:17.1]} 43. Kf2 {[%clk 0:00:25.6]}
43... Ra3 {[%clk 0:00:16.5]} 44. Ke1 {[%clk 0:00:22.4]} 44... Ra1+ {[%clk
0:00:15.4]} 45. Kf2 {[%clk 0:00:20.6]} 45... Ra2 {[%clk 0:00:15.6]} 46. Ke1
{[%clk 0:00:20.3]} 46... g4 {[%clk 0:00:15.9]} 47. Re3 {[%clk 0:00:16.9]} 47...
Kd6 {[%clk 0:00:15.6]} 48. Rd3+ {[%clk 0:00:16.5]} 48... Ke7 {[%clk 0:00:15.9]}
49. Re3 {[%clk 0:00:16.4]} 49... Rb2 {[%clk 0:00:16.3]} 50. Bd1 {[%clk
0:00:16.2]} 50... h5 {[%clk 0:00:14.9]} 51. Be2 {[%clk 0:00:16]} 51... Bd7
{[%clk 0:00:15.2]} 52. Rd3 {[%clk 0:00:15.6]} 52... Bc6 {[%clk 0:00:15.6]} 53.
Re3 {[%clk 0:00:15.6]} 53... Ke6 {[%clk 0:00:15]} 54. Kd1 {[%clk 0:00:15.1]}
54... Ra2 {[%clk 0:00:15.1]} 55. Kc1 {[%clk 0:00:14.6]} 55... f5 {[%clk
0:00:13]} 56. exf5+ {[%clk 0:00:14.4]} 56... Kxf5 {[%clk 0:00:13.9]} 57. Kb1
{[%clk 0:00:14.6]} 57... Ra7 {[%clk 0:00:13.3]} 58. Kb2 {[%clk 0:00:13.7]} 58...
e4 {[%clk 0:00:12.7]} 59. Kc3 {[%clk 0:00:12.4]} 59... Ra1 {[%clk 0:00:11.6]}
60. Kd2 {[%clk 0:00:10]} 60... Ke5 {[%clk 0:00:11.2]} 61. Kc3 {[%clk 0:00:09.9]}
61... Rg1 {[%clk 0:00:09.2]} 62. Bd3 {[%clk 0:00:02.3]} 62... Rc1+ {[%clk
0:00:07.2]} 63. Kd2 {[%clk 0:00:01.7]} 63... Ra1 {[%clk 0:00:06.8]} 64. Kc3
{[%clk 0:00:01.8]} 64... Rg1 {[%clk 0:00:04.6]} 65. Be2 {[%clk 0:00:01.9]} 65...
Rc1+ {[%clk 0:00:04.9]} 66. Kd2 {[%clk 0:00:01.6]} 66... Rb1 {[%clk 0:00:05.1]}
67. Kc3 {[%clk 0:00:01.9]} 67... Rg1 {[%clk 0:00:04.7]} 68. Bd3 {[%clk
0:00:01.4]} 68... Rg2 {[%clk 0:00:04.9]} 0-1

[Event "*** SCC Grand Prix: Titled Tuesday Blitz"]
[Site "Chess.com"]
[Date "2020.08.25"]
[Round "10"]
[White "ZverevLev"]
[Black "dopolian"]
[Result "0-1"]
[WhiteElo "2350"]
[BlackElo "2475"]
[TimeControl "180+1"]
[EndTime "12:01:18 PDT"]
[Termination "dopolian won by resignation"]

1. e4 {[%clk 0:03:00.9]} 1... e5 {[%clk 0:02:57.1]} 2. Nf3 {[%clk 0:02:57.1]}
2... Nc6 {[%clk 0:02:57.3]} 3. Bc4 {[%clk 0:02:55]} 3... Bc5 {[%clk 0:02:55.9]}
4. c3 {[%clk 0:02:53.5]} 4... Nf6 {[%clk 0:02:55.1]} 5. d3 {[%clk 0:02:52.3]}
5... O-O {[%clk 0:02:54.5]} 6. O-O {[%clk 0:02:50]} 6... d6 {[%clk 0:02:52.9]}
7. Bb3 {[%clk 0:02:49.4]} 7... a6 {[%clk 0:02:46.4]} 8. Nbd2 {[%clk 0:02:46.8]}
8... Ne7 {[%clk 0:02:42]} 9. h3 {[%clk 0:02:43.6]} 9... Ng6 {[%clk 0:02:41.9]}
10. Re1 {[%clk 0:02:43.6]} 10... c6 {[%clk 0:02:37.5]} 11. Nf1 {[%clk
0:02:42.3]} 11... Re8 {[%clk 0:02:33.2]} 12. Ng3 {[%clk 0:02:39.8]} 12... d5
{[%clk 0:02:33]} 13. exd5 {[%clk 0:02:37.3]} 13... cxd5 {[%clk 0:02:32.9]} 14.
Nxe5 {[%clk 0:02:29.5]} 14... Bxf2+ {[%clk 0:02:22.1]} 15. Kxf2 {[%clk
0:02:26.2]} 15... Nxe5 {[%clk 0:02:20.7]} 16. d4 {[%clk 0:02:25.2]} 16... Ng6
{[%clk 0:02:16]} 17. Kg1 {[%clk 0:02:17.5]} 17... Be6 {[%clk 0:02:10]} 18. Be3
{[%clk 0:02:11.6]} 18... b5 {[%clk 0:02:07.8]} 19. Qf3 {[%clk 0:02:09.3]} 19...
h6 {[%clk 0:01:42.3]} 20. Rf1 {[%clk 0:02:06.9]} 20... Ne4 {[%clk 0:01:35.1]}
21. Nxe4 {[%clk 0:01:42.7]} 21... dxe4 {[%clk 0:01:36]} 22. Qf2 {[%clk
0:01:42.9]} 22... Bxb3 {[%clk 0:01:32.2]} 23. axb3 {[%clk 0:01:43]} 23... Qd5
{[%clk 0:01:32.8]} 24. Ra5 {[%clk 0:01:38]} 24... Qxb3 {[%clk 0:01:27.6]} 25.
Rfa1 {[%clk 0:01:32.8]} 25... b4 {[%clk 0:01:21.5]} 26. cxb4 {[%clk 0:01:26.5]}
26... Qxb4 {[%clk 0:01:22.4]} 27. Rxa6 {[%clk 0:01:26.3]} 27... Rxa6 {[%clk
0:01:19.8]} 28. Rxa6 {[%clk 0:01:27.2]} 28... Qb5 {[%clk 0:01:14.3]} 29. Ra7
{[%clk 0:01:07.9]} 29... f5 {[%clk 0:01:12.9]} 30. Qg3 {[%clk 0:01:01]} 30...
Kh7 {[%clk 0:01:11.5]} 31. h4 {[%clk 0:00:45.7]} 31... Re7 {[%clk 0:01:04.9]}
32. Ra8 {[%clk 0:00:14.2]} 32... Qd5 {[%clk 0:00:48.3]} 33. h5 {[%clk
0:00:12.8]} 33... Qxa8 {[%clk 0:00:43.1]} 34. hxg6+ {[%clk 0:00:11.4]} 34... Kg8
{[%clk 0:00:33]} 35. Qd6 {[%clk 0:00:11.3]} 35... Qe8 {[%clk 0:00:23.8]} 36. d5
{[%clk 0:00:09.9]} 36... Rd7 {[%clk 0:00:21.2]} 37. Qc6 {[%clk 0:00:08.9]} 37...
Rd8 {[%clk 0:00:17.8]} 38. Qxe8+ {[%clk 0:00:07.3]} 38... Rxe8 {[%clk
0:00:17.9]} 39. Bb6 {[%clk 0:00:05.6]} 39... Rb8 {[%clk 0:00:11]} 40. Bc7 {[%clk
0:00:03.2]} 40... Rxb2 {[%clk 0:00:09.5]} 41. d6 {[%clk 0:00:03.8]} 41... Rd2
{[%clk 0:00:09.8]} 42. Kf1 {[%clk 0:00:03.6]} 42... Kf8 {[%clk 0:00:08.9]} 43.
Ke1 {[%clk 0:00:04.1]} 43... Rd3 {[%clk 0:00:09.2]} 44. Ke2 {[%clk 0:00:04.2]}
44... Ke8 {[%clk 0:00:08.3]} 45. g3 {[%clk 0:00:02.7]} 45... Kd7 {[%clk
0:00:07.5]} 46. Ba5 {[%clk 0:00:03]} 46... Rxd6 {[%clk 0:00:06.1]} 47. Bc3
{[%clk 0:00:03.6]} 47... Rxg6 {[%clk 0:00:06.6]} 48. Kf2 {[%clk 0:00:03.6]}
48... e3+ {[%clk 0:00:06.8]} 49. Kf3 {[%clk 0:00:02.7]} 49... e2 {[%clk
0:00:06.9]} 50. Be1 {[%clk 0:00:03.1]} 50... Re6 {[%clk 0:00:05.7]} 51. Kf4
{[%clk 0:00:03.5]} 51... g6 {[%clk 0:00:04.2]} 52. Kf3 {[%clk 0:00:02.5]} 52...
h5 {[%clk 0:00:04.5]} 53. Kf4 {[%clk 0:00:02.6]} 53... Ke7 {[%clk 0:00:04.4]}
54. Kf3 {[%clk 0:00:02.6]} 54... Kf6 {[%clk 0:00:04.8]} 55. Kf2 {[%clk
0:00:02.9]} 55... g5 {[%clk 0:00:04.9]} 56. Kf3 {[%clk 0:00:03.8]} 56... g4+
{[%clk 0:00:04.8]} 57. Kf2 {[%clk 0:00:03.7]} 57... Kg6 {[%clk 0:00:04.2]} 58.
Kg2 {[%clk 0:00:04]} 58... h4 {[%clk 0:00:04.2]} 59. gxh4 {[%clk 0:00:03.5]}
59... f4 {[%clk 0:00:04.9]} 60. Kf2 {[%clk 0:00:04.4]} 60... f3 {[%clk
0:00:04.7]} 61. Kg3 {[%clk 0:00:04.4]} 61... Kf5 {[%clk 0:00:05.2]} 62. h5
{[%clk 0:00:03.8]} 62... Rh6 {[%clk 0:00:05.5]} 63. Bd2 {[%clk 0:00:03.2]} 63...
Rxh5 {[%clk 0:00:05.3]} 64. Be1 {[%clk 0:00:03]} 64... Rh1 {[%clk 0:00:05.3]}
65. Kf2 {[%clk 0:00:03.6]} 65... Rxe1 {[%clk 0:00:05.2]} 66. Ke3 {[%clk
0:00:04.5]} 66... Rf1 {[%clk 0:00:05]} 67. Kd4 {[%clk 0:00:05.4]} 67... e1=Q
{[%clk 0:00:05.9]} 68. Kc5 {[%clk 0:00:06.2]} 68... Rf2 {[%clk 0:00:06.2]} 69.
Kd6 {[%clk 0:00:07.1]} 69... Rd2+ {[%clk 0:00:07.1]} 0-1

[Event "*** SCC Grand Prix: Titled Tuesday Blitz"]
[Site "Chess.com"]
[Date "2020.08.25"]
[Round "10"]
[White "albi1999"]
[Black "jefferyx"]
[Result "0-1"]
[WhiteElo "2586"]
[BlackElo "2927"]
[TimeControl "180+1"]
[EndTime "12:01:23 PDT"]
[Termination "jefferyx won on time"]

1. d4 {[%clk 0:03:00.9]} 1... g6 {[%clk 0:02:58.8]} 2. Nf3 {[%clk 0:02:59.9]}
2... Bg7 {[%clk 0:02:59.2]} 3. g3 {[%clk 0:03:00.5]} 3... d6 {[%clk 0:02:59.6]}
4. Bg2 {[%clk 0:03:00.8]} 4... Nc6 {[%clk 0:03:00.1]} 5. O-O {[%clk 0:02:57.6]}
5... Bd7 {[%clk 0:03:00.6]} 6. b3 {[%clk 0:02:51.9]} 6... Qc8 {[%clk 0:02:57.2]}
7. Re1 {[%clk 0:02:49.6]} 7... Bh3 {[%clk 0:02:57]} 8. Bh1 {[%clk 0:02:50]} 8...
h5 {[%clk 0:02:57.6]} 9. Bb2 {[%clk 0:02:34.1]} 9... h4 {[%clk 0:02:57.8]} 10.
Qc1 {[%clk 0:02:28.8]} 10... hxg3 {[%clk 0:02:50.6]} 11. fxg3 {[%clk 0:02:25.3]}
11... Qg4 {[%clk 0:02:37.3]} 12. d5 {[%clk 0:02:08.5]} 12... Nd4 {[%clk
0:02:36.1]} 13. Nxd4 {[%clk 0:02:06.7]} 13... Bxd4+ {[%clk 0:02:35.9]} 14. e3
{[%clk 0:02:05.2]} 14... Bxb2 {[%clk 0:02:28.4]} 15. Qxb2 {[%clk 0:02:06.1]}
15... Nf6 {[%clk 0:02:28.8]} 16. Nd2 {[%clk 0:02:04.6]} 16... O-O-O {[%clk
0:02:27.3]} 17. Qd4 {[%clk 0:02:01.8]} 17... Kb8 {[%clk 0:02:18.6]} 18. Qxg4
{[%clk 0:01:57.6]} 18... Bxg4 {[%clk 0:02:19.5]} 19. e4 {[%clk 0:01:51.5]} 19...
Rh5 {[%clk 0:02:19.9]} 20. Rf1 {[%clk 0:01:44.2]} 20... Rdh8 {[%clk 0:02:19.9]}
21. Rf2 {[%clk 0:01:44.2]} 21... Nd7 {[%clk 0:02:20.5]} 22. Raf1 {[%clk
0:01:32.5]} 22... Ne5 {[%clk 0:02:20.8]} 23. Nc4 {[%clk 0:01:20.5]} 23... Nxc4
{[%clk 0:01:42.8]} 24. bxc4 {[%clk 0:01:21.4]} 24... f6 {[%clk 0:01:43.4]} 25.
Rd2 {[%clk 0:01:19.5]} 25... b6 {[%clk 0:01:43.1]} 26. Rf4 {[%clk 0:01:12.1]}
26... Bd7 {[%clk 0:01:43.6]} 27. Bf3 {[%clk 0:01:11.1]} 27... R5h6 {[%clk
0:01:43.8]} 28. Bd1 {[%clk 0:01:05.4]} 28... Kb7 {[%clk 0:01:44.4]} 29. Rf3
{[%clk 0:00:57.8]} 29... Bg4 {[%clk 0:01:42]} 30. Rff2 {[%clk 0:00:57.7]} 30...
Bd7 {[%clk 0:01:41.5]} 31. Rf3 {[%clk 0:00:56.8]} 31... g5 {[%clk 0:01:41.7]}
32. Ra3 {[%clk 0:00:54.9]} 32... g4 {[%clk 0:01:19.7]} 33. Rf2 {[%clk
0:00:53.2]} 33... Rh5 {[%clk 0:01:18.9]} 34. Re3 {[%clk 0:00:51.5]} 34... Re5
{[%clk 0:01:16.1]} 35. Rf4 {[%clk 0:00:50.4]} 35... Reh5 {[%clk 0:01:16.8]} 36.
Rf2 {[%clk 0:00:48.7]} 36... c6 {[%clk 0:01:17.2]} 37. Rc3 {[%clk 0:00:41.5]}
37... Re5 {[%clk 0:01:16.7]} 38. Rf4 {[%clk 0:00:37]} 38... Rg8 {[%clk
0:01:14.6]} 39. Re3 {[%clk 0:00:34.6]} 39... cxd5 {[%clk 0:01:06.7]} 40. cxd5
{[%clk 0:00:35.5]} 40... Reg5 {[%clk 0:01:07.1]} 41. Rc3 {[%clk 0:00:34.5]}
41... Rc8 {[%clk 0:01:05.4]} 42. Rxc8 {[%clk 0:00:33.6]} 42... Kxc8 {[%clk
0:01:06.3]} 43. Rf2 {[%clk 0:00:30.8]} 43... Kb7 {[%clk 0:01:06.8]} 44. Rd2
{[%clk 0:00:29.6]} 44... Ka6 {[%clk 0:01:06.6]} 45. Kf2 {[%clk 0:00:29.2]} 45...
Re5 {[%clk 0:01:05.8]} 46. Rd4 {[%clk 0:00:27.8]} 46... Ka5 {[%clk 0:01:06.3]}
47. Ke3 {[%clk 0:00:27.6]} 47... f5 {[%clk 0:01:03.3]} 48. Kf4 {[%clk
0:00:24.3]} 48... b5 {[%clk 0:00:58.3]} 49. c3 {[%clk 0:00:20.6]} 49... Kb6
{[%clk 0:00:58.4]} 50. Bc2 {[%clk 0:00:19.1]} 50... Kc5 {[%clk 0:00:55.8]} 51.
exf5 {[%clk 0:00:18.6]} 51... Re2 {[%clk 0:00:56.7]} 52. Bd3 {[%clk 0:00:16.4]}
52... Rxa2 {[%clk 0:00:54.2]} 53. Kxg4 {[%clk 0:00:16.5]} 53... Ra3 {[%clk
0:00:54.8]} 54. Be4 {[%clk 0:00:15.3]} 54... Rxc3 {[%clk 0:00:54.7]} 55. Rd2
{[%clk 0:00:15.8]} 55... b4 {[%clk 0:00:52.2]} 56. h4 {[%clk 0:00:15.3]} 56...
b3 {[%clk 0:00:45.9]} 57. h5 {[%clk 0:00:15.4]} 57... a5 {[%clk 0:00:46.7]} 58.
h6 {[%clk 0:00:15.7]} 58... Kb4 {[%clk 0:00:47.4]} 59. h7 {[%clk 0:00:15.3]}
59... Rc8 {[%clk 0:00:48.1]} 60. Rh2 {[%clk 0:00:12.3]} 60... Rh8 {[%clk
0:00:47.1]} 61. Kg5 {[%clk 0:00:11.6]} 61... a4 {[%clk 0:00:47.7]} 62. Kg6
{[%clk 0:00:11.8]} 62... a3 {[%clk 0:00:48.2]} 63. Bb1 {[%clk 0:00:12.3]} 63...
Rxh7 {[%clk 0:00:32.6]} 64. Kxh7 {[%clk 0:00:10.7]} 64... Bxf5+ {[%clk
0:00:31.9]} 65. Bxf5 {[%clk 0:00:10.8]} 65... a2 {[%clk 0:00:32.2]} 66. Rh4+
{[%clk 0:00:05.2]} 66... Ka5 {[%clk 0:00:30.9]} 67. Rh1 {[%clk 0:00:04.5]} 67...
b2 {[%clk 0:00:31.1]} 68. Rb1 {[%clk 0:00:04]} 68... a1=Q {[%clk 0:00:32]} 69.
Kg6 {[%clk 0:00:04.2]} 69... Kb4 {[%clk 0:00:29.9]} 70. g4 {[%clk 0:00:04.6]}
70... Qa2 {[%clk 0:00:22.2]} 71. Be4 {[%clk 0:00:02.7]} 71... Qc4 {[%clk
0:00:18.8]} 72. Kf5 {[%clk 0:00:02.8]} 72... Kc3 {[%clk 0:00:14.7]} 73. g5
{[%clk 0:00:01]} 73... Qd4 {[%clk 0:00:15.2]} 0-1